bitfinex-derivatives/quotes_ETHF0:USTF0_20250807
["timestamp","ask_amount","ask_price","bid_price","bid_amount"]
[1754606401806,62.4121,3880.0,3879.9,3.03694701]
[1754606402906,62.859,3880.0,3879.9,0.92784701]
[1754606403104,62.859,3880.0,3879.4,0.4474]
[1754606403105,1.3763,3879.5,3879.4,0.8761]
[1754606403411,22.91943,3879.5,3879.4,0.8761]
[1754606403613,22.91943,3879.5,3879.4,2.755]
[1754606403912,22.91943,3879.5,3879.4,1.4286]
[1754606404309,22.91943,3879.5,3879.4,0.4287]
[1754606404501,22.42523,3879.5,3879.4,2.1735]
[1754606404700,22.50213,3879.5,3879.4,2.1735]
[1754606404901,22.91943,3879.5,3879.4,2.1735]
[1754606405307,1.11119,3879.0,3878.9,2.1735]
[1754606405509,18.93219,3879.0,3878.9,2.1735]
[1754606405707,18.4168,3879.0,3878.9,2.1735]
[1754606406305,18.1227,3879.0,3878.9,2.1735]
[1754606406710,18.63809,3879.0,3878.9,2.1735]
[1754606407114,18.97949,3879.0,3878.9,2.1735]
[1754606407613,19.26579,3879.0,3878.9,2.1735]
[1754606407809,18.7504,3879.0,3878.9,2.1735]
[1754606408814,18.78,3879.0,3878.9,2.1735]
[1754606409313,19.1973,3879.0,3878.9,2.1735]
[1754606410310,18.78,3879.0,3878.9,2.1735]
[1754606412105,3.2078,3879.5,3878.9,1.1659]
[1754606412306,3.90917446,3879.9,3879.8,2.1735]
[1754606412515,3.72307,3879.9,3879.8,2.1735]
[1754606412710,62.34607,3879.9,3879.8,2.1735]
[1754606412910,63.34254446,3879.9,3879.8,2.1735]
[1754606413107,63.78694446,3879.9,3879.8,2.1735]
[1754606413311,63.78694446,3879.9,3879.8,1.7551]
[1754606413509,0.8952,3879.6,3879.5,2.1735]
[1754606413714,2.051,3879.3,3879.2,1.4286]
[1754606413913,23.0828,3879.3,3879.2,1.4286]
[1754606414113,23.78417446,3879.3,3879.2,2.755]
[1754606414323,24.29952446,3879.3,3879.2,3.1734]
[1754606414617,24.29952446,3879.3,3879.2,1.7272]
[1754606414812,23.36687446,3879.3,3879.2,3.1734]
[1754606415014,4.80437446,3879.3,3879.2,2.1735]
[1754606415217,0.70137446,3879.5,3879.4,2.1735]
[1754606415419,3.2078,3879.7,3879.1,3.2078]
[1754606415420,3.90917446,3879.7,3879.5,2.68883]
[1754606415613,17.824,3879.6,3879.5,2.68883]
[1754606415812,18.75437696,3879.6,3879.5,2.1735]
[1754606416216,18.52537446,3879.6,3879.5,2.1735]
[1754606418231,20.15907446,3879.6,3879.5,2.1735]
[1754606418414,20.57637446,3879.6,3879.5,1.3077]
[1754606418624,2.56633,3879.5,3879.4,2.7447]
[1754606418822,3.26770446,3879.5,3879.4,2.7447]
[1754606419223,3.26770446,3879.5,3879.4,3.1734]
[1754606419521,3.49704994,3879.5,3879.4,0.9999]
[1754606420318,1.6337,3879.2,3879.1,2.1735]
[1754606420518,22.63617446,3879.2,3879.1,2.1735]
[1754606420727,22.34207446,3879.2,3879.1,2.1735]
[1754606421122,21.73317446,3879.2,3879.1,2.1735]
[1754606421432,23.36687446,3879.2,3879.1,2.1735]
[1754606421624,22.02727446,3879.2,3878.8,0.4287]
[1754606421924,1.6337,3878.9,3878.8,2.1735]
[1754606422124,19.4577,3878.9,3878.8,2.1735]
[1754606422314,20.15907446,3878.9,3878.8,2.1735]
[1754606422519,19.42057446,3878.9,3878.8,2.1735]
[1754606422721,20.67449446,3878.9,3878.8,2.1735]
[1754606422925,21.09179446,3878.9,3878.8,2.1735]
[1754606423524,21.09179446,3878.9,3878.8,2.68892]
[1754606423729,19.36369507,3878.9,3878.8,2.68892]
[1754606424232,19.94419507,3878.9,3878.8,2.1735]
[1754606424528,1.82599507,3878.9,3878.8,2.1735]
[1754606424722,19.71477446,3878.9,3878.8,2.1735]
[1754606424930,1.82792,3878.8,3878.7,1.4473]
[1754606425126,2.33517446,3878.8,3878.7,2.7447]
[1754606425527,2.33517446,3878.8,3878.7,3.1734]
[1754606425829,0.70137446,3878.8,3878.7,3.1734]
[1754606426230,18.52637446,3878.8,3878.7,3.1734]
[1754606426927,19.42157446,3878.8,3878.7,0.9999]
[1754606427134,20.57747446,3878.8,3878.7,2.755]
[1754606427435,20.57747446,3878.8,3878.7,3.1734]
[1754606427633,20.16017446,3878.8,3878.7,3.68883]
[1754606427934,20.16017446,3878.8,3878.7,3.1734]
[1754606428122,20.57747446,3878.8,3878.7,3.1734]
[1754606428329,20.57747446,3878.8,3878.7,2.755]
[1754606428723,1.85763948,3879.8,3879.1,1.3264]
[1754606428933,1.85763948,3879.8,3878.8,1.28855]
[1754606428934,0.2271327,3879.8,3879.7,2.1735]
[1754606429227,0.2271327,3880.5,3880.4,1.39421]
[1754606429428,0.2271327,3880.6,3880.4,4.60201]
[1754606429629,0.22382537,3880.9,3880.8,2.39005]
[1754606429833,0.22382537,3881.2,3881.0,0.51513]
[1754606430025,18.7422,3881.5,3881.4,0.879]
[1754606430231,20.12192537,3881.5,3881.4,0.879]
[1754606430422,20.12192537,3881.5,3881.1,1.2945]
[1754606430630,1.4706,3881.0,3880.9,2.1735]
[1754606431032,0.6089,3881.0,3880.9,2.1735]
[1754606431335,3.5095,3881.4,3881.3,2.68859]
[1754606431537,21.3515,3881.4,3881.3,2.1735]
[1754606431836,21.7988,3881.4,3881.3,2.1735]
[1754606432024,23.1261,3881.4,3881.3,2.1735]
[1754606432224,0.5722,3881.1,3881.0,0.81732]
[1754606432533,19.8932,3881.1,3881.0,0.5796]
[1754606432734,19.8932,3881.1,3881.0,2.1628]
[1754606432923,19.1594,3881.1,3881.0,2.1628]
[1754606433123,18.1477,3881.1,3881.0,2.1628]
[1754606433733,18.4242,3881.1,3881.0,2.1628]
[1754606433934,19.3116,3881.1,3881.0,2.1628]
[1754606434435,19.8932,3881.1,3881.0,1.7475]
[1754606434629,0.51513,3881.0,3880.7,1.4152]
[1754606434933,2.0412,3880.8,3880.7,1.2773]
[1754606435237,19.8832,3880.8,3880.7,1.2773]
[1754606435537,60.6832,3880.8,3880.7,3.1627]
[1754606437128,60.6832,3880.8,3880.7,3.67787]
[1754606437527,59.9494,3880.8,3880.7,3.67787]
[1754606437733,60.2431,3880.8,3880.7,3.1627]
[1754606437935,60.6832,3880.8,3880.7,2.7474]
[1754606438136,60.6832,3880.8,3880.7,0.9999]
[1754606438329,60.6832,3880.8,3880.7,1.8818]
[1754606438532,59.9494,3880.8,3880.7,3.1627]
[1754606438924,59.9494,3880.8,3880.7,2.1628]
[1754606439934,59.2142,3880.8,3880.7,2.1628]
[1754606440137,59.6615,3880.8,3880.7,2.1628]
[1754606440331,58.642,3880.8,3880.7,2.1628]
[1754606440527,3.5035,3881.6,3881.5,1.2972]
[1754606440731,23.082,3881.6,3881.5,0.5797]
[1754606440939,63.882,3881.6,3881.5,0.5797]
[1754606441138,63.882,3881.6,3881.5,1.7475]
[1754606441534,63.882,3881.6,3881.5,0.2774]
[1754606441734,63.882,3881.6,3881.5,1.7475]
[1754606442142,63.882,3881.6,3881.5,0.8819]
[1754606442939,0.8601,3881.3,3881.0,0.9999]
[1754606443137,2.0412,3881.1,3881.0,0.9999]
[1754606443336,19.8672,3881.1,3881.0,0.9999]
[1754606443934,60.6672,3881.1,3881.0,0.9999]
[1754606445145,60.6672,3881.1,3881.0,1.2773]
[1754606445440,60.6672,3881.1,3881.0,3.1627]
[1754606445640,60.6672,3881.1,3881.0,1.7475]
[1754606446140,60.6672,3881.1,3881.0,2.1628]
[1754606446438,41.0957,3881.1,3881.0,2.02370032]
[1754606446646,3.2078,3881.2,3881.1,0.90991266]
[1754606446845,23.1961,3881.2,3881.1,0.32171266]
[1754606447036,63.9961,3881.2,3881.1,0.32171266]
[1754606447840,63.9961,3881.2,3881.1,1.07471266]
[1754606448142,63.9961,3881.2,3881.1,1.48961266]
[1754606448449,61.3034,3881.2,3881.1,1.90491266]
[1754606448646,61.3034,3881.2,3881.1,1.48961266]
[1754606448846,61.3034,3881.2,3881.1,1.07471266]
[1754606449148,61.3034,3881.2,3881.1,0.2774]
[1754606450040,60.7883,3881.2,3881.1,0.8819]
[1754606450245,60.7883,3881.2,3881.1,1.7475]
[1754606450947,2.1653,3880.9,3880.8,1.84775]
[1754606451147,19.9823,3880.9,3880.8,2.26265]
[1754606451344,19.9823,3880.9,3880.8,0.51515]
[1754606451553,2.1653,3880.8,3880.7,1.51506]
[1754606451743,2.1653,3880.8,3880.7,2.39696]
[1754606451949,40.8,3881.2,3881.1,2.1628]
[1754606452245,59.0643,3881.2,3881.1,2.1628]
[1754606452447,59.9222,3881.2,3881.1,2.1628]
[1754606452641,59.0643,3881.2,3881.1,2.1628]
[1754606452839,58.617,3881.2,3881.1,2.1628]
[1754606453043,17.817,3881.2,3881.1,2.1628]
[1754606453644,0.8579,3881.9,3880.8,3.2078]
[1754606453645,40.8,3881.6,3881.5,2.67786]
[1754606453844,58.617,3881.6,3881.5,2.67786]
[1754606454650,17.817,3881.6,3881.5,2.67786]
[1754606456839,20.49735,3881.6,3881.5,1.3326]
[1754606457045,2.1653,3881.3,3881.2,2.84759]
[1754606457250,2.1653,3881.3,3881.2,3.26249]
[1754606457449,2.1653,3881.3,3881.2,3.67779]
[1754606458544,2.68039,3881.3,3881.2,2.3325]
[1754606458744,2.1653,3881.3,3881.2,1.8818]
[1754606459144,2.1653,3881.3,3881.2,2.7474]
[1754606459744,2.1653,3881.3,3881.2,2.3325]
[1754606460347,2.1653,3881.3,3881.2,2.7474]
[1754606460940,1.7252,3881.3,3881.2,2.7474]
[1754606461146,1.4487,3881.3,3881.2,3.1627]
[1754606461350,2.24029,3881.3,3881.2,2.7474]
[1754606461544,2.68099,3881.3,3881.2,2.3325]
[1754606462148,2.1659,3881.3,3881.2,2.7764]
[1754606462348,2.1659,3881.3,3881.2,3.2265]
[1754606462549,2.1659,3881.3,3881.2,2.7764]
[1754606463055,2.1659,3881.3,3881.2,2.3325]
[1754606463449,2.1659,3881.3,3881.2,0.9999]
[1754606464853,2.1659,3881.3,3881.2,1.2857]
[1754606465259,2.1659,3881.3,3881.2,1.8897]
[1754606465554,2.1659,3881.3,3881.2,1.2857]
[1754606465754,2.1659,3881.3,3881.2,0.9999]
[1754606466252,2.1659,3881.3,3881.2,2.3196]
[1754606467357,2.1659,3881.3,3881.2,0.9999]
[1754606467757,2.1659,3881.3,3881.2,2.3196]
[1754606468159,2.1659,3881.3,3881.2,1.5875]
[1754606468357,2.1659,3881.3,3881.2,1.2857]
[1754606468557,2.1659,3881.3,3881.2,0.9999]
[1754606468957,2.1659,3881.3,3881.2,1.515]
[1754606469263,2.1659,3881.3,3881.2,3.2786]
[1754606469660,2.1659,3881.3,3881.2,2.7635]
[1754606470860,17.814,3881.3,3881.2,3.7287]
[1754606471657,19.5528,3881.3,3881.2,3.7287]
[1754606471962,18.833,3881.3,3881.2,3.7287]
[1754606473059,19.9709,3881.3,3881.2,3.2786]
[1754606473658,19.9709,3881.3,3881.2,3.7287]
[1754606476461,17.814,3881.3,3881.2,3.7287]
[1754606477968,4.6675,3881.8,3881.7,2.72873]
[1754606478160,23.86475201,3881.8,3881.7,2.72873]
[1754606478469,23.86475201,3881.8,3881.7,1.7636]
[1754606478667,20.65695201,3881.8,3881.7,1.7636]
[1754606478865,19.9689,3881.8,3881.7,1.7636]
[1754606480068,2.1569,3881.6,3881.5,1.83476]
[1754606480265,19.9689,3881.6,3881.5,3.27856]
[1754606481466,19.9689,3881.6,3881.5,3.72866]
[1754606481667,17.812,3881.6,3881.5,3.27856]
[1754606481967,19.5508,3881.6,3881.5,3.72866]
[1754606482160,19.9689,3881.6,3881.5,3.72866]
[1754606482969,17.812,3881.6,3881.5,3.72866]
[1754606483365,19.9689,3881.6,3881.5,3.72866]
[1754606483559,19.9689,3881.6,3881.5,1.51496]
[1754606484270,19.9689,3881.6,3881.5,1.80076]
[1754606484461,19.9689,3881.6,3881.5,2.23066]
[1754606484956,19.9689,3881.6,3881.5,2.83466]
[1754606485161,19.9689,3881.6,3881.5,3.27856]
[1754606485773,19.9689,3881.6,3881.5,2.83466]
[1754606486370,2.1569,3881.6,3881.5,2.83466]
[1754606486571,19.9669,3881.6,3881.5,2.83466]
[1754606487272,19.9669,3881.6,3881.5,3.27856]
[1754606487567,19.9669,3881.6,3881.5,0.9999]
[1754606488070,19.9669,3881.6,3881.5,2.3196]
[1754606488664,19.5488,3881.6,3881.5,2.7635]
[1754606488957,3.2078,3881.8,3881.7,0.8898]
[1754606488958,4.74183,3881.8,3881.7,0.8898]
[1754606489161,22.54983,3881.8,3881.7,2.2137]
[1754606489362,18.49570268,3881.8,3881.7,2.2137]
[1754606489565,17.808,3881.8,3881.7,2.2137]
[1754606491063,18.2619,3881.8,3881.7,2.2137]
[1754606491666,18.5459,3881.8,3881.7,2.2137]
[1754606492574,19.5699,3881.8,3881.7,2.2137]
[1754606492774,19.9877,3881.8,3881.7,2.2137]
[1754606493371,19.9877,3881.8,3881.7,1.7636]
[1754606494270,0.414,3881.7,3881.5,4.72275]
[1754606494473,19.5179,3881.6,3881.5,5.29545]
[1754606494672,19.9357,3881.6,3881.5,6.39875]
[1754606494867,23.1435,3881.6,3881.5,0.9999]
[1754606495573,23.83117854,3881.6,3881.5,0.9999]
[1754606496176,64.84274054,3881.6,3881.5,0.9999]
[1754606496375,0.8628,3881.0,3880.9,1.35853]
[1754606496575,19.9357,3881.0,3880.9,2.19113]
[1754606497075,0.8628,3880.7,3880.6,2.62577]
[1754606497270,2.64487,3880.7,3880.6,0.5605]
[1754606497578,2.64487,3880.7,3880.6,0.9999]
[1754606498174,2.64487,3880.7,3880.6,1.676]
[1754606498175,43.44487,3880.7,3880.6,1.676]
[1754606498375,43.44487,3880.7,3880.6,0.8434]
[1754606498571,43.44487,3880.7,3880.6,1.676]
[1754606498972,43.44487,3880.7,3880.6,0.8434]
[1754606500277,43.44487,3880.7,3880.6,0.5605]
[1754606500679,43.44487,3880.7,3880.6,1.676]
[1754606500874,41.7862,3880.7,3880.6,2.62578]
[1754606501081,59.02,3880.7,3880.6,2.1106]
[1754606501875,40.8,3880.7,3880.6,2.1106]
[1754606502076,1.7157,3881.2,3881.1,0.8434]
[1754606502279,20.0368,3881.2,3881.1,1.676]
[1754606502476,60.3217,3881.2,3881.1,1.676]
[1754606502675,60.7357,3881.2,3881.1,1.676]
[1754606502875,19.9357,3881.2,3881.1,1.676]
[1754606503678,19.5179,3881.2,3881.1,2.19111]
[1754606503875,19.5179,3881.2,3881.1,2.62571]
[1754606504677,19.9357,3881.2,3881.1,2.62571]
[1754606505183,19.9357,3881.2,3881.1,2.1106]
[1754606505680,41.3151,3881.3,3881.1,0.2898]
[1754606505873,41.3151,3881.3,3880.8,0.9999]
[1754606505874,3.2078,3882.8,3882.5,0.8434]
[1754606506074,3.2078,3882.8,3881.8,1.28756]
[1754606506075,17.813,3883.2,3882.7,3.2078]
[1754606506278,42.70575411,3883.1,3883.0,0.8434]
[1754606506586,43.14085411,3883.1,3883.0,2.1106]
[1754606507682,43.14085411,3883.1,3883.0,1.676]
[1754606508388,42.9297,3883.1,3883.0,1.676]
[1754606508692,0.414,3883.0,3882.4,1.34754]
[1754606508990,0.8628,3882.5,3882.4,0.8434]
[1754606509193,2.1297,3882.5,3882.4,0.8434]
[1754606509794,2.1297,3882.5,3882.4,1.676]
[1754606511391,19.9347,3882.5,3882.4,1.676]
[1754606513386,1.7119,3882.3,3882.2,0.9999]
[1754606513588,20.44565,3882.3,3882.2,0.9999]
[1754606514095,1.93637,3881.4,3881.3,2.1106]
[1754606514390,19.2223,3881.4,3881.3,2.19109]
[1754606514591,18.3732,3881.4,3881.3,2.62569]
[1754606515393,17.801,3881.4,3881.3,2.62569]
[1754606515885,0.929,3882.0,3881.5,2.1106]
[1754606516091,1.2029,3882.0,3881.9,2.1106]
[1754606516292,20.2842,3882.0,3881.9,2.1106]
[1754606516486,20.2842,3882.0,3881.9,1.676]
[1754606516487,61.0842,3882.0,3881.9,1.676]
[1754606516686,60.0223,3882.0,3881.9,2.62561]
[1754606516893,60.0223,3882.0,3881.9,2.1106]
[1754606517185,60.2786,3882.0,3881.9,2.1106]
[1754606517993,60.2786,3882.0,3881.9,2.62561]
[1754606518494,60.79359,3882.0,3881.9,2.1106]
[1754606518693,60.2786,3882.0,3881.9,2.1106]
[1754606518888,3.2078,3882.4,3881.9,2.1106]
[1754606519089,1.38620512,3883.6,3883.1,0.8434]
[1754606519090,3.2078,3883.2,3883.1,0.8434]
[1754606519398,17.82,3883.5,3883.3,2.62542]
[1754606519692,17.82,3883.5,3883.4,2.1106]
[1754606519889,58.62,3883.5,3883.4,2.1106]
[1754606521492,59.034,3883.5,3883.4,2.1106]
[1754606522600,58.62,3883.5,3883.4,2.1106]
[1754606523192,59.4598,3883.5,3883.4,2.1106]
[1754606523385,19.7875,3883.5,3883.4,0.8434]
[1754606523588,0.2932,3883.3,3883.0,0.9999]
[1754606523792,18.682,3883.2,3883.1,0.8802]
[1754606523994,18.682,3883.2,3883.1,1.7492]
[1754606524298,19.7775,3883.2,3883.1,2.1676]
[1754606524994,20.29233,3883.2,3883.1,2.1676]
[1754606525595,20.29233,3883.2,3883.1,1.7492]
[1754606525996,20.29233,3883.2,3883.1,0.2857]
[1754606526897,20.29233,3883.2,3883.0,0.9999]
[1754606527198,1.9675,3883.1,3883.0,2.3111]
[1754606527599,1.9675,3883.1,3883.0,3.1675]
[1754606528600,1.9675,3883.1,3883.0,2.7491]
[1754606533406,1.9675,3883.1,3883.0,3.1675]
[1754606534403,1.9675,3883.1,3883.0,2.7491]
[1754606534904,1.9675,3883.1,3883.0,0.9999]
[1754606535701,0.5788,3882.7,3882.6,1.3951]
[1754606535906,19.7635,3882.7,3882.6,2.1676]
[1754606536504,0.5788,3882.5,3882.4,0.9999]
[1754606536809,22.9713,3882.5,3882.4,0.9999]
[1754606537008,63.7713,3882.5,3882.4,0.9999]
[1754606537206,64.45175423,3882.5,3882.4,0.7442]
[1754606537409,0.5798,3881.8,3881.7,1.0123]
[1754606537601,19.2156,3881.8,3881.7,1.7492]
[1754606537804,19.2156,3881.8,3881.7,2.4934]
[1754606538509,19.2156,3881.8,3881.7,2.9118]
[1754606538907,19.2156,3881.8,3881.7,2.1676]
[1754606539505,19.2156,3881.8,3881.7,1.7492]
[1754606539705,19.2156,3881.8,3881.7,1.3112]
[1754606539905,1.4196,3881.6,3881.5,0.7442]
[1754606540100,22.4244,3881.6,3881.5,0.7442]
[1754606540512,63.2244,3881.6,3881.5,0.7442]
[1754606540704,0.5798,3881.2,3881.1,1.3112]
[1754606540903,22.4244,3881.2,3881.1,1.3112]
[1754606541210,22.9395,3881.2,3881.1,2.0554]
[1754606541514,0.80835,3880.8,3880.7,1.7492]
[1754606541714,1.93475,3880.8,3880.7,1.7492]
[1754606542211,1.93475,3880.8,3880.7,2.9118]
[1754606543506,5.14255,3880.8,3880.7,2.0554]
[1754606543907,5.14255,3880.8,3880.7,2.4934]
[1754606544105,4.6274,3880.8,3880.7,2.4934]
[1754606544504,4.6274,3880.8,3880.7,0.7442]
[1754606544704,4.2178,3880.8,3880.7,2.9118]
[1754606545001,4.6274,3880.8,3880.7,2.9118]
[1754606545204,45.4274,3880.8,3880.7,2.9118]
[1754606547914,45.4274,3880.8,3880.7,2.4934]
[1754606548215,45.4274,3880.8,3880.7,2.0554]
[1754606548510,45.4274,3880.8,3880.7,1.0299]
[1754606548710,45.4274,3880.8,3880.7,0.7442]
[1754606549408,1.4196,3880.3,3880.2,1.82642]
[1754606549608,19.2206,3880.3,3880.2,2.68282]
[1754606549808,3.2078,3880.8,3880.7,2.1676]
[1754606550009,21.0088,3880.8,3880.7,2.1676]
[1754606550209,44.0078,3880.8,3880.7,2.1676]
[1754606550405,40.8,3880.8,3880.7,2.68277]
[1754606550604,3.2078,3881.3,3881.2,2.6827]
[1754606550810,2.7539,3881.3,3881.2,2.6827]
[1754606551613,1.4365,3881.5,3881.4,1.77517]
[1754606552116,1.4365,3881.5,3881.4,2.61837]
[1754606554818,1.95156,3881.5,3881.4,2.1033]
[1754606555018,1.4365,3881.5,3881.4,2.1033]
[1754606555218,2.162,3881.5,3881.4,2.1033]
[1754606556523,1.7317,3881.5,3881.4,2.1033]
[1754606557007,2.162,3881.5,3881.4,2.1033]
[1754606557207,2.162,3881.5,3880.9,0.9999]
[1754606557208,0.51511,3881.1,3880.9,0.9999]
[1754606557411,2.1387,3881.1,3881.0,1.6979]
[1754606557618,19.9407,3881.1,3881.0,1.6979]
[1754606557818,4.27934,3881.7,3881.6,0.8547]
[1754606558017,3.2078,3881.7,3881.6,2.1033]
[1754606558216,0.51501,3881.9,3881.1,1.28776]
[1754606558217,18.87351,3881.9,3881.8,2.1033]
[1754606558519,19.9407,3881.9,3881.8,2.61832]
[1754606558718,18.3585,3881.9,3881.8,2.61832]
[1754606558919,0.5565,3881.9,3881.8,2.61832]
[1754606559119,19.6445,3881.9,3881.8,2.1033]
[1754606559515,19.2142,3881.9,3881.8,2.1033]
[1754606559915,18.3575,3881.9,3881.8,2.1033]
[1754606560119,3.2078,3882.2,3882.1,2.61828]
[1754606560419,21.0088,3882.2,3882.1,2.61828]
[1754606560615,63.222,3882.2,3882.1,2.1033]
[1754606561218,63.6523,3882.2,3882.1,2.1033]
[1754606563725,0.5565,3881.8,3881.7,1.36973]
[1754606563913,18.7758,3881.8,3881.7,1.36973]
[1754606564118,44.0078,3882.2,3881.8,0.51502]
[1754606564316,44.52278,3882.2,3882.1,2.1033]
[1754606564518,62.32278,3882.2,3882.1,2.1033]
[1754606565019,63.60978,3882.2,3882.1,2.1033]
[1754606565530,63.60978,3882.2,3882.1,1.2836]
[1754606566322,63.60978,3882.2,3882.1,1.6979]
[1754606568728,60.40198,3882.2,3882.1,1.6979]
[1754606569027,63.60778,3882.2,3882.1,2.1033]
[1754606569230,62.74008,3882.2,3882.1,2.1033]
[1754606569426,63.60778,3882.2,3882.1,2.1033]
[1754606570319,63.60778,3882.2,3882.1,1.6979]
[1754606570928,2.1387,3882.1,3882.0,1.3006]
[1754606571134,2.1387,3882.1,3882.0,2.2689]
[1754606571631,2.1387,3882.1,3882.0,2.6978]
[1754606571833,19.9367,3882.1,3882.0,3.1032]
[1754606575331,19.9367,3882.1,3882.0,0.9999]
[1754606576636,20.61828268,3882.1,3882.0,0.9999]
[1754606577239,1.4132,3881.3,3881.2,2.61839]
[1754606577528,19.9357,3881.3,3881.2,3.61829]
[1754606577736,19.9357,3881.3,3881.2,2.6978]
[1754606578837,19.9357,3881.3,3881.2,3.1032]
[1754606579135,19.9357,3881.3,3881.2,2.6978]
[1754606581139,19.9357,3881.3,3881.2,1.7295]
[1754606581337,19.9357,3881.3,3881.2,0.9999]
[1754606581534,19.9357,3881.3,3881.2,1.2783]
[1754606581839,60.7357,3881.3,3881.2,2.6517]
[1754606582439,60.7357,3881.3,3881.2,2.2538]
[1754606582638,60.7357,3881.3,3881.2,2.6517]
[1754606583033,40.8,3881.3,3881.2,2.7689]
[1754606583233,17.796,3881.4,3881.2,2.3523]
[1754606583538,4.5665,3881.6,3881.5,2.0537]
[1754606583741,63.1625,3881.6,3881.5,2.0537]
[1754606584340,21.0048,3881.6,3881.5,2.0537]
[1754606584542,22.6463,3881.6,3881.5,1.6518]
[1754606584739,21.6935,3881.6,3881.5,2.0537]
[1754606586034,22.3635,3881.6,3881.5,2.0537]
[1754606588035,21.6935,3881.6,3881.5,2.0537]
[1754606588434,21.2771,3881.6,3881.5,2.0537]
[1754606588842,21.6935,3881.6,3881.5,2.0537]
[1754606589338,3.2078,3881.6,3881.5,2.0537]
[1754606591240,40.8,3882.2,3882.0,2.56869]
[1754606591436,1.3587,3882.1,3882.0,2.56869]
[1754606591637,18.7512,3882.1,3882.0,2.56869]
[1754606592644,19.1537,3882.1,3882.0,2.56869]
[1754606592939,18.3348,3882.1,3882.0,2.56869]
[1754606593136,18.7512,3882.1,3882.0,2.56869]
[1754606593336,19.1537,3882.1,3882.0,2.56869]
[1754606593939,19.5749,3882.1,3882.0,2.56869]
[1754606594134,19.8529,3882.1,3882.0,2.56869]
[1754606597243,2.0579,3881.6,3881.5,5.77656]
[1754606597438,18.7353,3881.6,3881.5,5.77656]
[1754606597633,0.5398,3881.6,3881.5,5.77656]
[1754606597840,0.9562,3881.6,3881.5,5.77656]
[1754606598338,1.3587,3881.6,3881.5,5.77656]
[1754606598545,2.0579,3881.6,3881.5,5.77656]
[1754606599742,2.0579,3881.6,3881.5,0.2784]
[1754606600043,0.8178,3881.3,3881.2,3.16679]
[1754606600244,2.0579,3881.3,3881.2,3.56869]
[1754606601745,1.3587,3881.3,3881.2,3.56869]
[1754606601946,1.6367,3881.9,3881.8,2.56871]
[1754606602242,19.4287,3881.9,3881.8,2.56871]
[1754606602443,19.8499,3881.9,3881.8,2.56871]
[1754606602643,1.6554,3882.2,3882.1,1.35228]
[1754606602846,19.8489,3882.2,3882.1,2.56868]
[1754606604843,0.9562,3882.2,3882.1,2.56868]
[1754606605044,0.4164,3882.8,3882.5,0.8373]
[1754606605240,1.5124,3882.7,3882.6,2.56862]
[1754606605436,1.0912,3882.7,3882.6,2.17072]
[1754606605639,1.3587,3882.7,3882.6,2.56862]
[1754606605838,0.9562,3882.7,3882.6,2.56862]
[1754606606045,1.3587,3882.7,3882.6,2.56862]
[1754606606236,2.0579,3882.7,3882.6,2.56862]
[1754606606442,2.0579,3882.7,3882.6,1.6518]
[1754606607144,2.0579,3882.7,3882.6,2.0537]
[1754606608348,1.3587,3882.7,3882.6,2.0537]
[1754606609646,1.3587,3882.7,3882.6,3.0536]
[1754606610050,1.7799,3882.7,3882.6,3.0536]
[1754606610445,0.2723,3882.7,3882.6,3.0536]
[1754606610640,19.1457,3883.0,3882.9,0.79198]
[1754606610947,0.2723,3883.0,3882.9,1.35218]
[1754606611151,5.35927,3883.8,3883.7,0.8373]
[1754606611360,19.8439,3883.8,3883.7,0.8373]
[1754606611552,19.8439,3883.8,3883.7,2.60647]
[1754606611853,3.2078,3884.2,3884.1,2.0672]
[1754606612056,0.9307,3884.6,3884.5,2.16546]
[1754606612355,1.3282,3884.6,3884.5,2.16546]
[1754606612556,1.3282,3884.6,3884.5,2.58186]
[1754606612853,1.748,3884.6,3884.5,2.0672]
[1754606613254,2.0271,3884.6,3884.5,2.0672]
[1754606613655,2.0271,3884.6,3884.5,0.2736]
[1754606614155,19.8101,3884.6,3884.5,0.2736]
[1754606614363,2.54183,3884.0,3883.9,1.2418]
[1754606614659,2.54183,3884.0,3883.9,1.6508]
[1754606614956,2.54183,3884.0,3883.9,1.5473]
[1754606615565,2.54183,3884.0,3883.9,2.2417]
[1754606615860,2.54183,3884.0,3883.9,2.6507]
[1754606616864,2.54183,3884.0,3883.9,2.2417]
[1754606617556,20.32183,3884.0,3883.9,2.2417]
[1754606617754,20.32183,3884.0,3883.9,1.2735]
[1754606617961,20.32183,3884.0,3883.9,0.9999]
[1754606618862,23.52963,3884.0,3883.9,0.9999]
[1754606623554,64.32963,3884.0,3883.9,0.9999]
[1754606628472,1.32063,3883.3,3883.2,0.8128]
[1754606628672,19.8021,3883.3,3883.2,1.6508]
[1754606628973,19.8021,3883.3,3883.2,3.0671]
[1754606629674,19.3823,3883.3,3883.2,3.0671]
[1754606631069,19.3823,3883.3,3883.2,0.9999]
[1754606631271,19.3823,3883.3,3883.2,2.6507]
[1754606631272,19.8021,3883.3,3883.2,2.6507]
[1754606631575,19.8021,3883.3,3883.2,3.0671]
[1754606634372,17.775,3883.3,3883.2,3.0671]
[1754606636079,3.2078,3883.5,3883.4,2.0672]
[1754606636274,22.309,3883.5,3883.4,2.0672]
[1754606636479,22.7288,3883.5,3883.4,2.0672]
[1754606636868,23.0079,3883.5,3883.4,2.0672]
[1754606637080,2.0271,3883.4,3883.3,0.51482]